[Event "Early-Titled-Tuesday-Blitz-April-16-2024"]
[Site "Chess.com"]
[Date "2024.04.16"]
[Round "5"]
[White "vovachesss"]
[Black "Pedrada88"]
[Result "1-0"]
[WhiteElo "2763"]
[BlackElo "2577"]
[TimeControl "180+1"]
[EndTime "8:54:47 PDT"]
[Termination "vovachesss won by resignation"]

1. e4 {[%clk 0:02:54.7]} 1... c5 {[%clk 0:03:00.3]} 2. Nf3 {[%clk 0:02:52.6]}
2... Nc6 {[%clk 0:03:00.9]} 3. Bb5 {[%clk 0:02:51.7]} 3... Qb6 {[%clk
0:03:01.2]} 4. Nc3 {[%clk 0:02:51.2]} 4... e6 {[%clk 0:03:01.1]} 5. O-O {[%clk
0:02:45.8]} 5... Nge7 {[%clk 0:03:01]} 6. Re1 {[%clk 0:02:45.2]} 6... a6 {[%clk
0:03:01.5]} 7. Bf1 {[%clk 0:02:45.2]} 7... Ng6 {[%clk 0:03:02.1]} 8. b3 {[%clk
0:02:39.1]} 8... Be7 {[%clk 0:03:02.1]} 9. Bb2 {[%clk 0:02:39.4]} 9... O-O
{[%clk 0:03:02.4]} 10. d4 {[%clk 0:02:37.7]} 10... cxd4 {[%clk 0:02:55.5]} 11.
Na4 {[%clk 0:02:38.1]} 11... Qc7 {[%clk 0:02:51.6]} 12. Nxd4 {[%clk 0:02:38.2]}
12... b5 {[%clk 0:02:49.4]} 13. Nc3 {[%clk 0:02:32.4]} 13... Nxd4 {[%clk
0:02:47.7]} 14. Qxd4 {[%clk 0:02:32.3]} 14... Bf6 {[%clk 0:02:48.4]} 15. Qd2
{[%clk 0:02:24.2]} 15... Bb7 {[%clk 0:02:44.2]} 16. Nd1 {[%clk 0:02:22.1]} 16...
Bxb2 {[%clk 0:02:35.6]} 17. Nxb2 {[%clk 0:02:23]} 17... Rac8 {[%clk 0:02:35.5]}
18. c4 {[%clk 0:02:20]} 18... bxc4 {[%clk 0:02:19.9]} 19. Nxc4 {[%clk
0:02:20.9]} 19... d5 {[%clk 0:02:20]} 20. exd5 {[%clk 0:02:17]} 20... Bxd5
{[%clk 0:02:20]} 21. Rac1 {[%clk 0:02:13.1]} 21... Qf4 {[%clk 0:02:12.7]} 22.
Qxf4 {[%clk 0:02:04.8]} 22... Nxf4 {[%clk 0:02:13.6]} 23. g3 {[%clk 0:01:54.6]}
23... Ng6 {[%clk 0:02:09.4]} 24. Nb6 {[%clk 0:01:51.4]} 24... Bb7 {[%clk
0:02:03.6]} 25. Nxc8 {[%clk 0:01:50.7]} 25... Bxc8 {[%clk 0:02:03.1]} 26. f4
{[%clk 0:01:36.3]} 26... Ne7 {[%clk 0:01:59.5]} 27. Bg2 {[%clk 0:01:32.8]} 27...
h5 {[%clk 0:01:52.6]} 28. Rc7 {[%clk 0:01:32.2]} 28... Nf5 {[%clk 0:01:52.4]}
29. Rec1 {[%clk 0:01:30.7]} 29... Nd6 {[%clk 0:01:48.5]} 30. R1c6 {[%clk
0:01:29.1]} 30... Rd8 {[%clk 0:01:41.3]} 31. Rxd6 {[%clk 0:01:29]} 31... Rxd6
{[%clk 0:01:42.2]} 32. Rxc8+ {[%clk 0:01:29.7]} 32... Kh7 {[%clk 0:01:42.8]} 33.
Rc2 {[%clk 0:01:28.6]} 33... Kg6 {[%clk 0:01:36.5]} 34. Kf2 {[%clk 0:01:28.6]}
34... Rd1 {[%clk 0:01:34.6]} 35. Bf1 {[%clk 0:01:25.3]} 35... Kf5 {[%clk
0:01:31.6]} 36. Bxa6 {[%clk 0:01:24.6]} 36... h4 {[%clk 0:01:26.8]} 37. Be2
{[%clk 0:01:19.8]} 37... Rh1 {[%clk 0:01:20.9]} 38. Kg2 {[%clk 0:01:15.7]} 38...
Re1 {[%clk 0:01:21.1]} 39. Bd3+ {[%clk 0:01:15.8]} 39... Kf6 {[%clk 0:01:08.8]}
40. gxh4 {[%clk 0:01:14.8]} 40... Re3 {[%clk 0:01:07.6]} 41. Be2 {[%clk
0:01:13.8]} 41... Kf5 {[%clk 0:01:06.5]} 42. b4 {[%clk 0:01:14]} 42... Kxf4
{[%clk 0:00:58.9]} 43. b5 {[%clk 0:01:14.5]} 43... Ra3 {[%clk 0:00:47.4]} 44. b6
{[%clk 0:01:14.8]} 44... Ra8 {[%clk 0:00:47.7]} 45. b7 {[%clk 0:01:15.2]} 45...
Rb8 {[%clk 0:00:48.3]} 46. Bf3 {[%clk 0:01:15.6]} 46... e5 {[%clk 0:00:48.5]}
47. Rc8 {[%clk 0:01:15.9]} 47... e4 {[%clk 0:00:48.8]} 48. Rxb8 {[%clk
0:01:15.8]} 48... exf3+ {[%clk 0:00:49.4]} 49. Kf2 {[%clk 0:01:16.6]} 1-0

[Event "Early-Titled-Tuesday-Blitz-April-16-2024"]
[Site "Chess.com"]
[Date "2024.04.16"]
[Round "5"]
[White "ragnaroek66"]
[Black "Aygehovit1992"]
[Result "0-1"]
[WhiteElo "2512"]
[BlackElo "2727"]
[TimeControl "180+1"]
[EndTime "8:54:52 PDT"]
[Termination "Aygehovit1992 won by resignation"]

1. d4 {[%clk 0:03:00.9]} 1... Nf6 {[%clk 0:02:30.4]} 2. c4 {[%clk 0:03:00.4]}
2... g6 {[%clk 0:02:30.3]} 3. Nc3 {[%clk 0:03:00]} 3... Bg7 {[%clk 0:02:30.2]}
4. e4 {[%clk 0:02:59.8]} 4... d6 {[%clk 0:02:30]} 5. f3 {[%clk 0:03:00.4]} 5...
c6 {[%clk 0:02:28.5]} 6. Be3 {[%clk 0:03:00.3]} 6... a6 {[%clk 0:02:29]} 7. a4
{[%clk 0:02:59.5]} 7... Nbd7 {[%clk 0:02:28.4]} 8. Bd3 {[%clk 0:02:59.1]} 8...
e5 {[%clk 0:02:28.3]} 9. Nge2 {[%clk 0:02:53.6]} 9... h5 {[%clk 0:02:25.5]} 10.
Qd2 {[%clk 0:02:50.8]} 10... h4 {[%clk 0:02:25.7]} 11. a5 {[%clk 0:02:35]} 11...
Nh5 {[%clk 0:02:22.1]} 12. O-O {[%clk 0:02:28.2]} 12... O-O {[%clk 0:02:20.1]}
13. b4 {[%clk 0:01:44.1]} 13... Qe7 {[%clk 0:02:19.4]} 14. Rad1 {[%clk
0:01:29.8]} 14... exd4 {[%clk 0:02:07.4]} 15. Nxd4 {[%clk 0:01:29.2]} 15... Ne5
{[%clk 0:02:07.6]} 16. Be2 {[%clk 0:01:29.3]} 16... Kh7 {[%clk 0:01:58.1]} 17.
Nb3 {[%clk 0:01:09.2]} 17... Be6 {[%clk 0:01:58]} 18. Bg5 {[%clk 0:00:48.4]}
18... Bf6 {[%clk 0:01:53.8]} 19. Bxf6 {[%clk 0:00:41.1]} 19... Qxf6 {[%clk
0:01:54.7]} 20. Qd4 {[%clk 0:00:38.1]} 20... Nf4 {[%clk 0:01:51]} 21. Kh1 {[%clk
0:00:29.6]} 21... Qg5 {[%clk 0:01:49.8]} 22. Rg1 {[%clk 0:00:28.7]} 22... Rad8
{[%clk 0:01:45.4]} 23. Bf1 {[%clk 0:00:27.9]} 23... Qh6 {[%clk 0:01:37.1]} 24.
Nc1 {[%clk 0:00:26.9]} 24... Nh5 {[%clk 0:01:34.8]} 25. N1e2 {[%clk 0:00:17.2]}
25... Bxc4 {[%clk 0:01:34.6]} 26. Qf2 {[%clk 0:00:16]} 26... Bxe2 {[%clk
0:01:31.2]} 27. Nxe2 {[%clk 0:00:16.1]} 27... g5 {[%clk 0:01:27.9]} 28. f4
{[%clk 0:00:09.2]} 28... Ng4 {[%clk 0:01:27]} 29. Qf3 {[%clk 0:00:08.4]} 29...
f5 {[%clk 0:01:22.1]} 30. fxg5 {[%clk 0:00:07.9]} 30... Qxg5 {[%clk 0:01:20.8]}
31. exf5 {[%clk 0:00:07.3]} 31... Rxf5 {[%clk 0:01:19.7]} 0-1

[Event "Early-Titled-Tuesday-Blitz-April-16-2024"]
[Site "Chess.com"]
[Date "2024.04.16"]
[Round "5"]
[White "Devil_Sun"]
[Black "dealshark"]
[Result "1-0"]
[WhiteElo "2620"]
[BlackElo "2340"]
[TimeControl "180+1"]
[EndTime "8:54:59 PDT"]
[Termination "Devil_Sun won by resignation"]

1. d4 {[%clk 0:02:57.1]} 1... Nf6 {[%clk 0:02:59.9]} 2. c4 {[%clk 0:02:57.6]}
2... e6 {[%clk 0:03:00.2]} 3. Nf3 {[%clk 0:02:58.2]} 3... d5 {[%clk 0:03:00.1]}
4. Nc3 {[%clk 0:02:58.6]} 4... Be7 {[%clk 0:03:00.4]} 5. Bf4 {[%clk 0:02:59]}
5... O-O {[%clk 0:03:00.6]} 6. e3 {[%clk 0:02:59.4]} 6... Nbd7 {[%clk
0:02:57.1]} 7. c5 {[%clk 0:02:59.8]} 7... c6 {[%clk 0:02:56.2]} 8. b4 {[%clk
0:02:50.7]} 8... b6 {[%clk 0:02:55.6]} 9. Bd3 {[%clk 0:02:33.9]} 9... a5 {[%clk
0:02:55.2]} 10. a3 {[%clk 0:02:31.3]} 10... Ba6 {[%clk 0:02:46.3]} 11. O-O
{[%clk 0:02:14.4]} 11... Bxd3 {[%clk 0:02:44.4]} 12. Qxd3 {[%clk 0:02:13.7]}
12... Re8 {[%clk 0:02:27.9]} 13. b5 {[%clk 0:01:52.7]} 13... cxb5 {[%clk
0:01:55.4]} 14. c6 {[%clk 0:01:48.4]} 14... Nf8 {[%clk 0:01:49]} 15. Nxb5 {[%clk
0:01:36]} 15... Rc8 {[%clk 0:01:47.3]} 16. Rfc1 {[%clk 0:01:24.6]} 16... Ng6
{[%clk 0:01:46.2]} 17. Bg3 {[%clk 0:01:12.5]} 17... Ne4 {[%clk 0:01:44.6]} 18.
Rc2 {[%clk 0:00:59.8]} 18... Bd6 {[%clk 0:01:16.1]} 19. Rac1 {[%clk 0:00:44]}
19... Bxg3 {[%clk 0:01:15.6]} 20. hxg3 {[%clk 0:00:42.8]} 20... Ne7 {[%clk
0:00:49.4]} 21. c7 {[%clk 0:00:35.5]} 21... Qd7 {[%clk 0:00:47.1]} 22. Ne5
{[%clk 0:00:35]} 1-0

[Event "Early-Titled-Tuesday-Blitz-April-16-2024"]
[Site "Chess.com"]
[Date "2024.04.16"]
[Round "5"]
[White "WiktoriaPOL"]
[Black "WoolworthsManly"]
[Result "0-1"]
[WhiteElo "2392"]
[BlackElo "2677"]
[TimeControl "180+1"]
[EndTime "8:55:00 PDT"]
[Termination "WoolworthsManly won on time"]

1. c4 {[%clk 0:02:49.7]} 1... e5 {[%clk 0:02:57.5]} 2. Nc3 {[%clk 0:02:49.3]}
2... Nc6 {[%clk 0:02:55.5]} 3. Nf3 {[%clk 0:02:48.2]} 3... Bc5 {[%clk
0:02:40.7]} 4. e3 {[%clk 0:02:47.3]} 4... d6 {[%clk 0:02:24.5]} 5. d4 {[%clk
0:02:46.9]} 5... exd4 {[%clk 0:02:20.4]} 6. exd4 {[%clk 0:02:47.6]} 6... Bb6
{[%clk 0:02:17.2]} 7. Be3 {[%clk 0:02:43.4]} 7... Nge7 {[%clk 0:02:07]} 8. Be2
{[%clk 0:02:38.4]} 8... Nf5 {[%clk 0:02:07]} 9. O-O {[%clk 0:02:21.2]} 9... O-O
{[%clk 0:02:06.7]} 10. Qd2 {[%clk 0:02:07.5]} 10... Re8 {[%clk 0:01:54.5]} 11.
Bd3 {[%clk 0:01:59.2]} 11... Ncxd4 {[%clk 0:01:41.6]} 12. Nxd4 {[%clk
0:01:55.8]} 12... Nxd4 {[%clk 0:01:40.3]} 13. Bxh7+ {[%clk 0:01:14.4]} 13...
Kxh7 {[%clk 0:01:41.2]} 14. Bxd4 {[%clk 0:01:14.4]} 14... Bxd4 {[%clk
0:01:41.2]} 15. Qxd4 {[%clk 0:01:15.3]} 15... Bd7 {[%clk 0:01:40.8]} 16. Nd5
{[%clk 0:01:12.2]} 16... Bc6 {[%clk 0:01:39.1]} 17. Rfe1 {[%clk 0:01:04.5]}
17... Qd7 {[%clk 0:01:35.4]} 18. Qd3+ {[%clk 0:00:51.8]} 18... Kg8 {[%clk
0:01:32.6]} 19. Nf4 {[%clk 0:00:39.9]} 19... Re5 {[%clk 0:01:23.6]} 20. Qg3
{[%clk 0:00:30]} 20... Rae8 {[%clk 0:01:19.5]} 21. Red1 {[%clk 0:00:22.7]} 21...
Qe7 {[%clk 0:01:14.6]} 22. h4 {[%clk 0:00:16.3]} 22... Qf6 {[%clk 0:01:11.7]}
23. Rd3 {[%clk 0:00:09.8]} 23... Re4 {[%clk 0:01:01.6]} 24. Nh5 {[%clk
0:00:05.6]} 24... Qh6 {[%clk 0:00:59.8]} 25. Qf3 {[%clk 0:00:01.3]} 25... Re1+
{[%clk 0:00:56.8]} 0-1

[Event "Early-Titled-Tuesday-Blitz-April-16-2024"]
[Site "Chess.com"]
[Date "2024.04.16"]
[Round "5"]
[White "UK_23"]
[Black "Gabrielian_Artur"]
[Result "0-1"]
[WhiteElo "2488"]
[BlackElo "2786"]
[TimeControl "180+1"]
[EndTime "8:55:02 PDT"]
[Termination "Gabrielian_Artur won by resignation"]

1. e4 {[%clk 0:02:44]} 1... c5 {[%clk 0:02:59.2]} 2. Nf3 {[%clk 0:02:43.4]} 2...
d6 {[%clk 0:02:59.3]} 3. d4 {[%clk 0:02:43.1]} 3... cxd4 {[%clk 0:02:59.4]} 4.
Qxd4 {[%clk 0:02:44]} 4... Nc6 {[%clk 0:02:59.3]} 5. Qe3 {[%clk 0:02:44]} 5...
g6 {[%clk 0:02:57.4]} 6. h3 {[%clk 0:02:44.2]} 6... Bg7 {[%clk 0:02:57.6]} 7.
Be2 {[%clk 0:02:44.4]} 7... Nf6 {[%clk 0:02:57.8]} 8. O-O {[%clk 0:02:44.3]}
8... O-O {[%clk 0:02:58.1]} 9. Rd1 {[%clk 0:02:44.8]} 9... Be6 {[%clk
0:02:56.6]} 10. c4 {[%clk 0:02:42.5]} 10... Qb6 {[%clk 0:02:53.6]} 11. Nc3
{[%clk 0:02:29.1]} 11... Na5 {[%clk 0:02:37.5]} 12. Qxb6 {[%clk 0:02:22.4]}
12... axb6 {[%clk 0:02:37.2]} 13. Nd2 {[%clk 0:02:11.4]} 13... Rfc8 {[%clk
0:02:36]} 14. Nd5 {[%clk 0:01:59.8]} 14... Nxd5 {[%clk 0:02:02.2]} 15. exd5
{[%clk 0:01:55.3]} 15... Bf5 {[%clk 0:02:02]} 16. g4 {[%clk 0:01:42.1]} 16...
Bc2 {[%clk 0:02:01.1]} 17. Re1 {[%clk 0:01:42.7]} 17... Nb3 {[%clk 0:01:37.4]}
18. Nxb3 {[%clk 0:01:37.9]} 18... Bxb3 {[%clk 0:01:37.4]} 19. a3 {[%clk
0:01:08.2]} 19... Bf6 {[%clk 0:01:33.5]} 20. g5 {[%clk 0:01:06]} 20... Be5
{[%clk 0:01:30.4]} 21. f4 {[%clk 0:01:05.3]} 21... Bd4+ {[%clk 0:01:30.3]} 22.
Kg2 {[%clk 0:01:03.5]} 22... Kf8 {[%clk 0:01:28.6]} 23. Kf3 {[%clk 0:00:50.1]}
23... b5 {[%clk 0:01:12.2]} 24. Ke4 {[%clk 0:00:47.2]} 24... Bg7 {[%clk
0:01:09]} 25. cxb5 {[%clk 0:00:44]} 25... Ra4+ {[%clk 0:00:55.5]} 26. Ke3 {[%clk
0:00:38.3]} 26... Bd4+ {[%clk 0:00:48.8]} 27. Kf3 {[%clk 0:00:36.7]} 27... Bxd5+
{[%clk 0:00:46.8]} 28. Kg3 {[%clk 0:00:37.4]} 28... Rc2 {[%clk 0:00:37.3]} 29.
Bf3 {[%clk 0:00:34.7]} 29... Bf2+ {[%clk 0:00:37]} 0-1

[Event "Early-Titled-Tuesday-Blitz-April-16-2024"]
[Site "Chess.com"]
[Date "2024.04.16"]
[Round "5"]
[White "FairChess_on_YouTube"]
[Black "TenisMaster"]
[Result "1-0"]
[WhiteElo "3091"]
[BlackElo "2930"]
[TimeControl "180+1"]
[EndTime "8:55:03 PDT"]
[Termination "FairChess_on_YouTube won by resignation"]

1. c4 {[%clk 0:02:55.1]} 1... e6 {[%clk 0:02:49.9]} 2. Nf3 {[%clk 0:02:50.1]}
2... d5 {[%clk 0:02:49.6]} 3. d4 {[%clk 0:02:48.9]} 3... Nf6 {[%clk 0:02:49.3]}
4. Bg5 {[%clk 0:02:48.8]} 4... dxc4 {[%clk 0:02:48.3]} 5. e4 {[%clk 0:02:48.5]}
5... Bb4+ {[%clk 0:02:34.9]} 6. Nc3 {[%clk 0:02:48]} 6... b5 {[%clk 0:02:34.4]}
7. e5 {[%clk 0:02:47.1]} 7... h6 {[%clk 0:02:33.8]} 8. exf6 {[%clk 0:02:47.7]}
8... hxg5 {[%clk 0:02:33.1]} 9. fxg7 {[%clk 0:02:48.3]} 9... Rg8 {[%clk
0:02:32.4]} 10. h4 {[%clk 0:02:48.8]} 10... Rxg7 {[%clk 0:02:15.4]} 11. hxg5
{[%clk 0:02:45.3]} 11... Nd7 {[%clk 0:02:14.8]} 12. Rh8+ {[%clk 0:02:42.3]}
12... Nf8 {[%clk 0:02:14.9]} 13. a4 {[%clk 0:02:27]} 13... c6 {[%clk 0:02:00.4]}
14. Be2 {[%clk 0:02:14.7]} 14... Bb7 {[%clk 0:01:59.7]} 15. Kf1 {[%clk
0:02:14.7]} 15... Qb6 {[%clk 0:01:54.2]} 16. Kg1 {[%clk 0:01:38.4]} 16... O-O-O
{[%clk 0:01:51.8]} 17. Qc1 {[%clk 0:01:38.6]} 17... Ng6 {[%clk 0:01:40.2]} 18.
Rxd8+ {[%clk 0:01:35.3]} 18... Kxd8 {[%clk 0:01:41.1]} 19. Ne4 {[%clk
0:01:25.6]} 19... Rh7 {[%clk 0:01:17.4]} 20. Qe3 {[%clk 0:01:22.8]} 20... Kc7
{[%clk 0:01:08.9]} 21. a5 {[%clk 0:01:13.3]} 21... Qa6 {[%clk 0:00:51.5]} 22.
Nc5 {[%clk 0:01:12.8]} 22... Bxc5 {[%clk 0:00:50.4]} 23. dxc5 {[%clk 0:01:13.7]}
23... Kb8 {[%clk 0:00:27.9]} 24. Ne5 {[%clk 0:01:09.4]} 24... Bc8 {[%clk
0:00:26.3]} 25. Bf3 {[%clk 0:01:00.4]} 25... Nxe5 {[%clk 0:00:12.1]} 26. Qxe5+
{[%clk 0:01:01.3]} 26... Kb7 {[%clk 0:00:12.3]} 27. Rd1 {[%clk 0:00:53.8]} 27...
Qxa5 {[%clk 0:00:11.1]} 28. Qe4 {[%clk 0:00:53.6]} 28... Qc7 {[%clk 0:00:10]}
29. Qxh7 {[%clk 0:00:53.2]} 1-0

[Event "Early-Titled-Tuesday-Blitz-April-16-2024"]
[Site "Chess.com"]
[Date "2024.04.16"]
[Round "5"]
[White "temus_galaktionov"]
[Black "JonasEilenberg"]
[Result "1-0"]
[WhiteElo "2860"]
[BlackElo "2622"]
[TimeControl "180+1"]
[EndTime "8:55:09 PDT"]
[Termination "temus_galaktionov won by resignation"]

1. d4 {[%clk 0:03:00.9]} 1... d5 {[%clk 0:02:59.9]} 2. c4 {[%clk 0:02:59.5]}
2... e6 {[%clk 0:03:00]} 3. Nf3 {[%clk 0:02:58.6]} 3... c6 {[%clk 0:02:59.8]} 4.
Nbd2 {[%clk 0:02:58.1]} 4... Nf6 {[%clk 0:02:59.6]} 5. g3 {[%clk 0:02:50.2]}
5... Ne4 {[%clk 0:02:45.8]} 6. Bg2 {[%clk 0:02:48.8]} 6... f5 {[%clk 0:02:46.5]}
7. O-O {[%clk 0:02:47.9]} 7... Bd6 {[%clk 0:02:46.9]} 8. Qc2 {[%clk 0:02:48.1]}
8... O-O {[%clk 0:02:47]} 9. Ne1 {[%clk 0:02:48.7]} 9... Nd7 {[%clk 0:02:42.1]}
10. Nd3 {[%clk 0:02:46.4]} 10... Qe7 {[%clk 0:02:23.7]} 11. f3 {[%clk
0:02:45.5]} 11... Nxd2 {[%clk 0:02:23.8]} 12. Bxd2 {[%clk 0:02:46.4]} 12... b6
{[%clk 0:02:21.9]} 13. e4 {[%clk 0:02:45.8]} 13... Ba6 {[%clk 0:02:13.5]} 14.
exd5 {[%clk 0:02:32.1]} 14... cxd5 {[%clk 0:02:07.2]} 15. cxd5 {[%clk
0:02:31.7]} 15... Rac8 {[%clk 0:01:49.3]} 16. Bc3 {[%clk 0:02:18.9]} 16... exd5
{[%clk 0:01:49.4]} 17. Rfe1 {[%clk 0:02:17.6]} 17... Qf6 {[%clk 0:01:49.6]} 18.
Ne5 {[%clk 0:02:16]} 18... Bxe5 {[%clk 0:01:41.6]} 19. dxe5 {[%clk 0:02:16.9]}
19... Qe6 {[%clk 0:01:42]} 20. Qd2 {[%clk 0:02:14.6]} 20... f4 {[%clk
0:01:36.7]} 21. Rad1 {[%clk 0:02:01.2]} 21... Bb7 {[%clk 0:01:11.3]} 22. gxf4
{[%clk 0:01:43.4]} 22... Rc4 {[%clk 0:01:11.1]} 23. Bd4 {[%clk 0:01:42]} 23...
Rfc8 {[%clk 0:01:11]} 24. Re2 {[%clk 0:01:37]} 24... Nf8 {[%clk 0:00:54.6]} 25.
Qd3 {[%clk 0:01:28.8]} 25... g6 {[%clk 0:00:52.6]} 26. h4 {[%clk 0:01:16.1]}
26... Ba6 {[%clk 0:00:45.7]} 27. Red2 {[%clk 0:00:50]} 27... Rc1 {[%clk
0:00:40.2]} 28. Qxa6 {[%clk 0:00:48.6]} 28... Rxd1+ {[%clk 0:00:35.6]} 29. Rxd1
{[%clk 0:00:49.5]} 29... Rc2 {[%clk 0:00:36]} 30. Qd3 {[%clk 0:00:45.3]} 30...
Qc6 {[%clk 0:00:31.5]} 31. Bc3 {[%clk 0:00:44.5]} 31... Rxg2+ {[%clk 0:00:29.8]}
32. Kxg2 {[%clk 0:00:45.4]} 32... Ne6 {[%clk 0:00:30.4]} 33. Kg3 {[%clk
0:00:41.3]} 1-0

[Event "Early-Titled-Tuesday-Blitz-April-16-2024"]
[Site "Chess.com"]
[Date "2024.04.16"]
[Round "5"]
[White "RedFirePanda"]
[Black "AlessiaSanteramo"]
[Result "0-1"]
[WhiteElo "2468"]
[BlackElo "2329"]
[TimeControl "180+1"]
[EndTime "8:55:09 PDT"]
[Termination "AlessiaSanteramo won by resignation"]

1. d4 {[%clk 0:03:00.9]} 1... Nf6 {[%clk 0:02:58.2]} 2. Bf4 {[%clk 0:02:55.6]}
2... e6 {[%clk 0:02:53.7]} 3. e3 {[%clk 0:02:52.6]} 3... d5 {[%clk 0:02:54]} 4.
h3 {[%clk 0:02:49.7]} 4... Bd6 {[%clk 0:02:53.2]} 5. Bxd6 {[%clk 0:02:49.3]}
5... Qxd6 {[%clk 0:02:53.4]} 6. c3 {[%clk 0:02:49.6]} 6... O-O {[%clk
0:02:52.7]} 7. Nf3 {[%clk 0:02:48.1]} 7... Nbd7 {[%clk 0:02:50]} 8. Nbd2 {[%clk
0:02:47.3]} 8... e5 {[%clk 0:02:50.2]} 9. dxe5 {[%clk 0:02:47.1]} 9... Nxe5
{[%clk 0:02:50.5]} 10. Nxe5 {[%clk 0:02:48]} 10... Qxe5 {[%clk 0:02:51.3]} 11.
Nf3 {[%clk 0:02:48.8]} 11... Qe7 {[%clk 0:02:42.6]} 12. Bd3 {[%clk 0:02:41.2]}
12... c6 {[%clk 0:02:40.6]} 13. O-O {[%clk 0:02:40.6]} 13... Ne4 {[%clk
0:02:38.6]} 14. Bxe4 {[%clk 0:02:31.5]} 14... Qxe4 {[%clk 0:02:38.2]} 15. a4
{[%clk 0:02:20.8]} 15... Re8 {[%clk 0:02:30.9]} 16. a5 {[%clk 0:02:15.8]} 16...
a6 {[%clk 0:02:30.4]} 17. Nd4 {[%clk 0:01:56.3]} 17... c5 {[%clk 0:02:14.7]} 18.
Nf3 {[%clk 0:01:37.1]} 18... Re6 {[%clk 0:02:10.8]} 19. Ng5 {[%clk 0:01:31.2]}
19... Qg6 {[%clk 0:01:54.8]} 20. Nxe6 {[%clk 0:01:28.1]} 20... Bxe6 {[%clk
0:01:55.7]} 21. Kh1 {[%clk 0:01:20.1]} 21... Rd8 {[%clk 0:01:53.6]} 22. Qf3
{[%clk 0:01:11.2]} 22... Bf5 {[%clk 0:01:53.5]} 23. Qf4 {[%clk 0:01:06.9]} 23...
Be4 {[%clk 0:01:51.3]} 24. f3 {[%clk 0:01:00.6]} 24... Bd3 {[%clk 0:01:51.5]}
25. Rfd1 {[%clk 0:01:00.1]} 25... h5 {[%clk 0:01:49.7]} 26. Rd2 {[%clk
0:00:37.9]} 26... c4 {[%clk 0:01:40.4]} 27. Qc7 {[%clk 0:00:22.1]} 27... Qg5
{[%clk 0:01:32.9]} 28. Rad1 {[%clk 0:00:10]} 28... Re8 {[%clk 0:01:31.1]} 29.
Qf4 {[%clk 0:00:06.6]} 29... Qg6 {[%clk 0:01:27.1]} 30. b3 {[%clk 0:00:06.5]}
30... Qe6 {[%clk 0:01:20.2]} 31. bxc4 {[%clk 0:00:06.1]} 31... dxc4 {[%clk
0:01:21.1]} 32. e4 {[%clk 0:00:05.9]} 32... Rd8 {[%clk 0:01:11.1]} 33. Qc7
{[%clk 0:00:05.9]} 33... Rd7 {[%clk 0:01:08.9]} 34. Qc8+ {[%clk 0:00:06.3]}
34... Kh7 {[%clk 0:01:09.4]} 35. Qxc4 {[%clk 0:00:04.8]} 35... Qxc4 {[%clk
0:01:06.2]} 0-1

[Event "Early-Titled-Tuesday-Blitz-April-16-2024"]
[Site "Chess.com"]
[Date "2024.04.16"]
[Round "5"]
[White "DeArron_Fox"]
[Black "IsaqueGoncalvesSanto"]
[Result "1-0"]
[WhiteElo "2523"]
[BlackElo "1864"]
[TimeControl "180+1"]
[EndTime "8:55:24 PDT"]
[Termination "DeArron_Fox won on time"]

1. d4 {[%clk 0:03:00.4]} 1... d5 {[%clk 0:01:57]} 2. c4 {[%clk 0:02:49.7]} 2...
c6 {[%clk 0:01:55.6]} 3. Nc3 {[%clk 0:02:50]} 3... e6 {[%clk 0:01:54.5]} 4. e3
{[%clk 0:02:50.4]} 4... f5 {[%clk 0:01:53.9]} 5. f4 {[%clk 0:02:49.5]} 5... Nf6
{[%clk 0:01:53.1]} 6. Nf3 {[%clk 0:02:45.8]} 6... Be7 {[%clk 0:01:53.2]} 7. Be2
{[%clk 0:02:45.6]} 7... O-O {[%clk 0:01:53.6]} 8. O-O {[%clk 0:02:46.2]} 8...
Ne4 {[%clk 0:01:53.6]} 9. Ne5 {[%clk 0:02:46.8]} 9... Nd7 {[%clk 0:01:53.6]} 10.
Nxe4 {[%clk 0:02:32.6]} 10... fxe4 {[%clk 0:01:50.5]} 11. Bd2 {[%clk 0:02:26.6]}
11... Nf6 {[%clk 0:01:21.4]} 12. b4 {[%clk 0:02:23.5]} 12... Bd7 {[%clk
0:01:15.9]} 13. a4 {[%clk 0:02:14.5]} 13... dxc4 {[%clk 0:01:15.7]} 14. Bxc4
{[%clk 0:02:12.5]} 14... Nd5 {[%clk 0:01:14.9]} 15. Qb1 {[%clk 0:01:13.7]} 15...
Nf6 {[%clk 0:01:13.4]} 16. f5 {[%clk 0:01:10.3]} 16... Nd5 {[%clk 0:00:51.8]}
17. Qxe4 {[%clk 0:00:51.3]} 17... exf5 {[%clk 0:00:50.4]} 18. Bxd5+ {[%clk
0:00:51]} 18... cxd5 {[%clk 0:00:49.7]} 19. Qxd5+ {[%clk 0:00:51.9]} 19... Kh8
{[%clk 0:00:36.8]} 20. Qxd7 {[%clk 0:00:50.3]} 20... Qxd7 {[%clk 0:00:31.3]} 21.
Nxd7 {[%clk 0:00:51.2]} 21... Rac8 {[%clk 0:00:28.6]} 22. Rac1 {[%clk
0:00:47.5]} 22... Rcd8 {[%clk 0:00:28.6]} 23. Nc5 {[%clk 0:00:45.2]} 23... b6
{[%clk 0:00:27.7]} 24. Ne6 {[%clk 0:00:43.6]} 24... Rde8 {[%clk 0:00:26.1]} 25.
Nxf8 {[%clk 0:00:42.4]} 25... Rxf8 {[%clk 0:00:26.6]} 26. Rc7 {[%clk 0:00:41.9]}
26... Bf6 {[%clk 0:00:12.5]} 27. Rxf5 {[%clk 0:00:39.8]} 27... h6 {[%clk
0:00:06.2]} 28. d5 {[%clk 0:00:37.8]} 1-0